bitfinex-derivatives/quotes_BTCF0:USTF0_20251119
["timestamp","ask_amount","ask_price","bid_price","bid_amount"]
[1763585644407,0.0001675,89565.0,89564.0,0.04469]
[1763585644609,0.0001675,89565.0,89564.0,0.04688803]
[1763585644811,0.0216475,89565.0,89564.0,0.04688803]
[1763585645004,0.0440775,89565.0,89564.0,0.04688803]
[1763585645209,0.0440775,89565.0,89564.0,0.00219803]
[1763585646106,0.155697,89557.0,89556.0,0.0001675]
[1763585647513,0.1119458,89565.0,89556.0,0.15884383]
[1763585647714,0.0440775,89565.0,89564.0,0.04469]
[1763585647913,0.0001675,89565.0,89564.0,0.04688803]
[1763585648214,0.1083675,89565.0,89564.0,0.04688803]
[1763585649118,0.1522775,89565.0,89564.0,0.00219803]
[1763585649608,0.1532775,89565.0,89564.0,0.00219803]
[1763585650209,0.1083675,89565.0,89564.0,0.04688803]
[1763585650405,0.1129445,89565.0,89564.0,0.04688803]
[1763585650616,0.1129445,89565.0,89560.0,0.3608]
[1763585650617,0.155692,89561.0,89560.0,0.3608]
[1763585650812,0.155692,89561.0,89560.0,0.36299803]
[1763585651511,0.15700418,89561.0,89560.0,0.36299803]
[1763585651917,0.15727023,89561.0,89560.0,0.36299803]
[1763585652216,0.15753503,89561.0,89560.0,0.36299803]
[1763585652719,0.15853503,89561.0,89560.0,0.36299803]
[1763585652924,0.15879983,89561.0,89560.0,0.36299803]
[1763585653215,0.15888928,89561.0,89560.0,0.36299803]
[1763585653719,0.155697,89557.0,89551.0,0.00011588]
[1763585654015,0.1557033,89552.0,89551.0,0.00011588]
[1763585654223,0.1557033,89552.0,89528.0,0.40549]
[1763585654224,0.02148,89529.0,89528.0,0.40549]
[1763585654418,0.00219728,89529.0,89528.0,0.51951123]
[1763585655212,0.00228879,89529.0,89528.0,0.51951123]
[1763585655623,0.00228879,89529.0,89528.0,0.52051123]
[1763585656720,0.00228879,89529.0,89528.0,0.52251123]
[1763585656922,0.00228879,89529.0,89528.0,0.41068803]
[1763585657924,0.00228879,89529.0,89528.0,0.40968803]
[1763585658123,0.00228879,89529.0,89528.0,0.41068803]
[1763585658728,0.00228879,89529.0,89528.0,0.40968803]
[1763585658921,0.00228879,89529.0,89528.0,0.41068803]
[1763585659918,0.00228879,89529.0,89528.0,0.40968803]
[1763585660325,0.00228879,89529.0,89528.0,0.52151123]
[1763585660923,0.00228879,89529.0,89528.0,0.52051123]
[1763585661223,0.00228879,89529.0,89528.0,0.52151123]
[1763585661716,0.00228879,89529.0,89528.0,0.52051123]
[1763585661912,0.00228879,89529.0,89528.0,0.52151123]
[1763585662117,0.04619879,89529.0,89528.0,0.52151123]
[1763585662328,0.04619879,89529.0,89528.0,0.40968803]
[1763585662521,0.0001675,89537.0,89536.0,0.1565032]
[1763585662728,0.1557045,89551.0,89550.0,0.02153]
[1763585663029,0.04391,89551.0,89550.0,0.04688803]
[1763585663525,0.04391,89552.0,89551.0,0.04469]
[1763585663724,0.1557108,89546.0,89545.0,0.3608]
[1763585663915,0.1557108,89546.0,89545.0,0.36299803]
[1763585664122,0.04391,89546.0,89545.0,0.36299803]
[1763585664327,0.04540647,89546.0,89545.0,0.36299803]
[1763585664724,0.04544618,89546.0,89545.0,0.36299803]
[1763585665425,0.15364618,89546.0,89545.0,0.36299803]
[1763585665817,0.15364618,89546.0,89545.0,0.40800803]
[1763585666619,0.15364618,89546.0,89545.0,0.40900803]
[1763585667014,0.15364618,89546.0,89545.0,0.40800803]
[1763585667218,0.15364618,89546.0,89545.0,0.40900803]
[1763585668234,0.15364618,89546.0,89545.0,0.36399803]
[1763585668527,0.15364618,89546.0,89545.0,0.04820803]
[1763585668728,0.15364618,89546.0,89545.0,0.00319803]
[1763585669030,0.13121618,89546.0,89545.0,0.40900803]
[1763585669416,0.00153618,89546.0,89545.0,0.40900803]
[1763585670218,0.3608,89586.0,89559.0,0.04501]
[1763585670219,0.22376562,89580.0,89559.0,0.04501]
[1763585670430,0.40442,89586.0,89570.0,0.01312]
[1763585670728,0.15182,89580.0,89579.0,0.04501]
[1763585670925,0.15182,89580.0,89579.0,0.04720803]
[1763585671126,0.15335626,89580.0,89579.0,0.02420803]
[1763585671325,0.10973626,89580.0,89579.0,0.04720803]
[1763585671521,0.15335626,89580.0,89579.0,0.00219803]
[1763585671833,0.15335626,89580.0,89579.0,0.04720803]
[1763585672227,0.11173626,89580.0,89579.0,0.04720803]
[1763585672924,0.00353626,89580.0,89579.0,0.04720803]
[1763585673130,0.00353626,89580.0,89579.0,0.40800803]
[1763585673330,0.0001675,89588.0,89587.0,0.0442]
[1763585673628,0.0001675,89588.0,89587.0,0.51894763]
[1763585673823,0.01385,89628.0,89605.0,0.1559271]
[1763585674138,0.04231,89620.0,89619.0,0.0442]
[1763585674339,0.04231,89620.0,89619.0,0.04639803]
[1763585674835,0.04231,89620.0,89619.0,0.00219803]
[1763585675632,0.04531,89620.0,89619.0,0.00219803]
[1763585675826,0.04531,89620.0,89619.0,0.02411803]
[1763585676230,0.04831,89620.0,89619.0,0.02411803]
[1763585676623,0.04831,89620.0,89619.0,0.04639803]
[1763585677025,0.02727,89620.0,89619.0,0.04639803]
[1763585677329,0.006,89620.0,89619.0,0.04639803]
[1763585677824,0.00702873,89620.0,89619.0,0.04639803]
[1763585678430,0.02829873,89620.0,89619.0,0.04639803]
[1763585678635,0.04943841,89620.0,89619.0,0.04639803]
[1763585678932,0.04953809,89620.0,89619.0,0.04639803]
[1763585679522,0.00732777,89620.0,89619.0,0.04639803]
[1763585679726,0.02327,89620.0,89619.0,0.04639803]
[1763585680039,0.1560184,89620.0,89619.0,0.04639803]
[1763585680328,0.04431,89620.0,89619.0,0.04639803]
[1763585680527,0.04731,89620.0,89619.0,0.04639803]
[1763585680928,0.04731,89620.0,89619.0,0.02411803]
[1763585681131,0.005,89620.0,89619.0,0.15810773]
[1763585681327,0.005,89620.0,89619.0,0.04639803]
[1763585682226,0.005,89620.0,89619.0,0.15810773]
[1763585682620,0.1082,89635.0,89630.0,0.111696]
[1763585682820,0.12947,89635.0,89634.0,0.04639803]
[1763585683026,0.15051,89635.0,89634.0,0.04639803]
[1763585683325,0.15051,89635.0,89634.0,0.40719803]
[1763585683521,0.12947,89635.0,89634.0,0.51888903]
[1763585683721,0.1082,89635.0,89634.0,0.51888903]
[1763585683935,0.70444,89644.0,89634.0,0.51888903]
[1763585683936,0.04231,89644.0,89643.0,0.0442]
[1763585684125,0.04231,89644.0,89643.0,0.40719803]
[1763585685033,0.10812,89646.0,89645.0,0.0442]
[1763585685329,0.12939,89646.0,89645.0,0.04639803]
[1763585685532,0.15043,89646.0,89645.0,0.04639803]
[1763585686030,0.01570571,89653.0,89652.0,0.0442]
[1763585686031,0.00471616,89653.0,89652.0,0.0442]
[1763585686234,0.00471616,89653.0,89652.0,0.40719803]
[1763585686619,0.04870266,89653.0,89652.0,0.36299803]
[1763585686825,0.04702616,89653.0,89652.0,0.00219803]
[1763585687025,0.04876026,89653.0,89652.0,0.00219803]
[1763585687233,0.00645026,89653.0,89652.0,0.40719803]
[1763585687542,0.00945026,89653.0,89652.0,0.40719803]
[1763585687932,0.05176026,89653.0,89652.0,0.40719803]
[1763585688431,0.05395829,89653.0,89652.0,0.3854907]
[1763585688830,0.05222419,89653.0,89652.0,0.37373023]
[1763585689037,0.05222419,89653.0,89652.0,0.44376754]
[1763585690131,0.03118419,89653.0,89652.0,0.08296754]
[1763585690331,0.05222419,89653.0,89652.0,0.03876754]
[1763585690530,0.05222419,89653.0,89652.0,0.03803487]
[1763585691131,0.1539873,89645.0,89644.0,0.3608]
[1763585691325,0.15618533,89645.0,89644.0,0.3608]
[1763585692232,0.1539985,89636.0,89635.0,0.3609674]
[1763585692430,0.15619653,89636.0,89635.0,0.3609674]
[1763585693532,0.15819653,89636.0,89635.0,0.3609674]
[1763585694136,0.15819653,89636.0,89635.0,0.0001674]
[1763585694440,0.1540097,89627.0,89626.0,0.3608]
[1763585694634,0.26432773,89627.0,89626.0,0.36153267]
[1763585694840,0.26432773,89627.0,89626.0,0.3608]
[1763585695329,0.13158803,89627.0,89626.0,0.40573267]
[1763585695734,0.13358803,89627.0,89626.0,0.40573267]
[1763585696032,0.15462803,89627.0,89626.0,0.38345267]
[1763585696429,0.15462803,89627.0,89626.0,0.40573267]
[1763585696633,0.15462803,89627.0,89626.0,0.51743367]
[1763585696634,0.00419803,89627.0,89626.0,0.51743367]
[1763585697542,0.02546803,89627.0,89626.0,0.40573267]
[1763585697936,0.00419803,89627.0,89626.0,0.51743367]
[1763585698237,0.00419803,89627.0,89626.0,0.40573267]
[1763585698441,0.06016803,89627.0,89626.0,0.40573267]
[1763585700338,0.00016707,89635.0,89626.0,0.40573267]
[1763585700339,0.09828,89652.0,89651.0,0.03142]
[1763585700636,0.05597,89644.0,89617.0,0.01275]
[1763585700850,0.05616,89628.0,89627.0,0.03183267]
[1763585701031,0.09109,89639.0,89638.0,0.0311]
[1763585701230,0.05816803,89639.0,89638.0,0.39263267]
[1763585701445,0.11432803,89639.0,89638.0,0.39263267]
[1763585701638,0.09328803,89639.0,89638.0,0.39263267]
[1763585701938,0.00219803,89639.0,89638.0,0.39263267]
[1763585702141,0.11366803,89639.0,89638.0,0.39263267]
[1763585702346,0.11366803,89639.0,89638.0,0.36153267]
[1763585702745,0.11566803,89639.0,89638.0,0.3608]
[1763585703045,0.11566803,89639.0,89638.0,0.36153267]
[1763585703246,0.11566803,89639.0,89638.0,0.3608]
[1763585703449,0.11566803,89639.0,89638.0,0.36153267]
[1763585703946,0.11566803,89639.0,89638.0,0.3608]
[1763585704335,0.11566803,89639.0,89638.0,0.36153267]
[1763585705341,0.11566803,89639.0,89638.0,0.50557867]
[1763585705537,0.002,89639.0,89638.0,0.50557867]
[1763585705939,0.05597,89649.0,89648.0,0.1440335]
[1763585706249,0.05816803,89649.0,89648.0,0.50556617]
[1763585706448,0.05816803,89649.0,89648.0,0.39389267]
[1763585706748,0.00219803,89649.0,89648.0,0.39389267]
[1763585707142,0.06116803,89649.0,89648.0,0.39389267]
[1763585707540,0.08271803,89649.0,89648.0,0.39389267]
[1763585707944,0.06116803,89649.0,89648.0,0.39389267]
[1763585708544,0.00519803,89649.0,89648.0,0.39389267]
[1763585709336,0.003,89649.0,89648.0,0.39389267]
[1763585710248,0.00519803,89649.0,89648.0,0.39389267]
[1763585710946,0.01282,89672.0,89652.0,0.1116682]
[1763585711253,0.05769803,89672.0,89671.0,0.36153267]
[1763585711437,0.04268,89657.0,89656.0,0.1116625]
[1763585711637,0.40348,89676.0,89675.0,0.1116399]
[1763585711837,0.46888,89687.0,89657.0,0.1116617]
[1763585711838,0.02155,89667.0,89657.0,0.1116617]
[1763585712046,0.04268,89658.0,89657.0,0.00073267]
[1763585712349,0.04268,89658.0,89653.0,0.00016731]
[1763585712350,0.04268,89654.0,89653.0,0.00016731]
[1763585712541,0.04487803,89654.0,89653.0,0.00089998]
[1763585713141,0.04487803,89654.0,89653.0,0.36096731]
[1763585714350,0.04487803,89654.0,89653.0,0.36169998]
[1763585715055,0.00219803,89654.0,89653.0,0.36169998]
[1763585715549,0.01282,89661.0,89660.0,0.1116586]
[1763585715743,0.01501803,89661.0,89660.0,0.11239127]
[1763585716350,0.01501803,89661.0,89660.0,0.00073267]
[1763585716548,0.16935543,89661.0,89660.0,0.00073267]
[1763585716753,0.04268,89635.0,89628.0,0.3608]
[1763585716952,0.04268,89660.0,89648.0,0.01316]
[1763585717259,0.04487803,89655.0,89654.0,0.04584]
[1763585717548,0.04268,89650.0,89649.0,0.04584]
[1763585717753,0.02155,89655.0,89654.0,0.02412267]
[1763585717949,0.02374803,89655.0,89654.0,0.02412267]
[1763585718149,0.00219803,89655.0,89654.0,0.04657267]
[1763585720054,0.04487803,89655.0,89654.0,0.00073267]
[1763585720558,0.00219803,89655.0,89644.0,0.3608]
[1763585720760,0.1116701,89651.0,89644.0,0.36153267]
[1763585720961,0.00219803,89645.0,89644.0,0.38492267]
[1763585721254,0.04268,89642.0,89641.0,0.00016731]
[1763585721459,0.3608,89657.0,89656.0,0.04584]
[1763585721650,0.3608,89657.0,89641.0,0.00089998]
[1763585721651,0.40567803,89657.0,89642.0,0.1116799]
[1763585721846,0.04268,89648.0,89647.0,0.00073267]
[1763585722051,0.3608,89657.0,89656.0,0.04584]
[1763585722353,0.26465263,89690.0,89657.0,0.1575023]
[1763585722558,0.10836,89674.0,89657.0,0.15823497]
[1763585723150,0.3608,89672.0,89657.0,0.51903497]
[1763585723758,0.00236502,89658.0,89657.0,0.51903497]
[1763585724363,0.00236502,89658.0,89657.0,0.40737267]
[1763585724557,0.02391502,89658.0,89657.0,0.04657267]
[1763585724756,0.04504502,89658.0,89648.0,0.3608]
[1763585725076,0.04268,89650.0,89649.0,0.00073267]
[1763585725260,0.04487803,89650.0,89649.0,0.00073267]
[1763585725559,0.04487803,89650.0,89649.0,0.02412267]
[1763585725962,0.00219803,89650.0,89649.0,0.05017267]
[1763585727758,0.05510803,89650.0,89649.0,0.00073267]
[1763585727954,0.05291,89642.0,89641.0,0.00016731]
[1763585728261,0.05510803,89642.0,89641.0,0.02702731]
[1763585728446,0.00219803,89642.0,89641.0,0.05380998]
[1763585728650,0.05510803,89642.0,89641.0,0.00089998]
[1763585728852,0.05510803,89642.0,89641.0,0.02775998]
[1763585729057,0.05510803,89642.0,89641.0,0.00089998]
[1763585729562,0.05510803,89642.0,89641.0,0.00016731]
[1763585729761,0.05510803,89642.0,89622.0,0.0114]
[1763585729957,0.111683,89641.0,89623.0,0.00073267]
[1763585730147,0.00219803,89624.0,89623.0,0.05364267]
[1763585730654,0.111683,89641.0,89623.0,0.05364267]
[1763585730858,0.00016731,89632.0,89631.0,0.05291]
[1763585731051,0.00236534,89632.0,89631.0,0.05364267]
[1763585733457,0.38603,89655.0,89654.0,0.05195]
[1763585733659,0.05238803,89655.0,89654.0,0.00073267]
[1763585733851,0.05238803,89655.0,89654.0,0.02635267]
[1763585734047,0.00219803,89655.0,89654.0,0.05268267]
[1763585736451,0.00016699,89663.0,89662.0,0.05195]
[1763585736653,0.00016699,89663.0,89662.0,0.05268267]
[1763585736854,0.00236502,89663.0,89662.0,0.05268267]
[1763585737057,0.05255502,89663.0,89662.0,0.00073267]
[1763585737960,0.05255502,89663.0,89662.0,0.02635267]
[1763585738360,0.05255502,89663.0,89662.0,0.05268267]
[1763585739162,0.00016699,89663.0,89662.0,0.16433877]
[1763585739351,0.00236502,89663.0,89662.0,0.05268267]
[1763585741369,0.00016699,89663.0,89662.0,0.05268267]
[1763585742463,0.05255502,89663.0,89662.0,0.05268267]
[1763585742666,0.05255502,89663.0,89662.0,0.00073267]
[1763585743862,0.05255502,89663.0,89662.0,0.05268267]
[1763585743863,0.00236502,89663.0,89662.0,0.05268267]
[1763585744061,0.02759502,89663.0,89662.0,0.16433877]
[1763585744259,0.02759502,89663.0,89662.0,0.05268267]
[1763585744461,0.00999999,89710.0,89662.0,0.05268267]
[1763585744462,0.3608,89676.0,89675.0,0.05195]
[1763585744668,0.41099,89676.0,89675.0,0.05414803]
[1763585744865,0.42587,89676.0,89675.0,0.00219803]
[1763585745064,0.41099,89685.0,89684.0,0.05195]
[1763585745367,0.02523,89685.0,89684.0,0.05414803]
[1763585745665,0.10844,89692.0,89685.0,0.05195]
[1763585745870,0.10844,89692.0,89685.0,0.05414803]
[1763585746166,0.41126875,89686.0,89685.0,0.05414803]
[1763585746468,0.41126875,89686.0,89685.0,0.00219803]
[1763585747374,0.00027875,89686.0,89685.0,0.05414803]
[1763585747874,0.05046875,89686.0,89685.0,0.00219803]
[1763585748261,0.41126875,89686.0,89685.0,0.00219803]
[1763585748560,0.02550875,89686.0,89685.0,0.05414803]
[1763585748762,0.05046875,89686.0,89685.0,0.05414803]
[1763585748974,0.00027875,89686.0,89685.0,0.05414803]
[1763585749556,0.05046875,89686.0,89685.0,0.00219803]
[1763585750467,0.05046875,89686.0,89685.0,0.05414803]
[1763585750968,0.00027875,89686.0,89685.0,0.16577553]
[1763585752268,0.3608,89696.0,89695.0,0.05195]
[1763585752471,0.02523,89696.0,89695.0,0.05414803]
[1763585752776,0.05019,89696.0,89695.0,0.05414803]
[1763585752959,0.05019,89696.0,89676.0,0.00016731]
[1763585753156,0.21033257,89690.0,89678.0,0.1116351]
[1763585753362,0.3608,89685.0,89680.0,0.1116336]
[1763585753564,0.3608,89685.0,89681.0,0.00219803]
[1763585753765,0.3608,89685.0,89684.0,0.05195]
[1763585753966,0.3608,89685.0,89684.0,0.05414803]
[1763585754167,0.38603,89685.0,89684.0,0.05414803]
[1763585754772,0.41099,89685.0,89684.0,0.05414803]
[1763585755271,0.05019,89677.0,89676.0,0.00016731]
[1763585755462,0.05019,89677.0,89676.0,0.00236534]
[1763585755658,0.38603,89685.0,89684.0,0.05195]
[1763585755867,0.38603,89685.0,89676.0,0.01602534]
[1763585755868,0.38576,89685.0,89676.0,0.00016731]
[1763585756073,0.05019,89677.0,89676.0,0.05431534]
[1763585756271,0.05019,89677.0,89676.0,0.02798534]
[1763585756471,0.41099,89677.0,89676.0,0.00236534]
[1763585757169,0.41099,89677.0,89676.0,0.02798534]
[1763585757374,0.41099,89677.0,89676.0,0.00236534]
[1763585757670,0.41099,89677.0,89676.0,0.00016731]
[1763585758871,0.51951,89677.0,89676.0,0.00016731]
[1763585759470,0.3608,89677.0,89676.0,0.06675]
[1763585759664,0.3608,89685.0,89676.0,0.00219803]
[1763585759665,0.41099,89685.0,89676.0,0.00219803]
[1763585759871,0.02523,89677.0,89676.0,0.02781803]
[1763585760163,0.02523,89677.0,89676.0,0.05414803]
[1763585760369,0.3608,89677.0,89676.0,0.16578673]
[1763585760574,0.3608,89677.0,89676.0,0.05414803]
[1763585760774,0.05019,89669.0,89668.0,0.00016731]
[1763585760972,0.41099,89669.0,89668.0,0.00016731]
[1763585761171,0.02523,89651.0,89650.0,0.41275]
[1763585761368,0.02523,89651.0,89650.0,0.41494803]
[1763585761572,0.05019,89651.0,89650.0,0.00219803]
[1763585761772,0.41099,89651.0,89633.0,0.1116916]
[1763585761977,0.3608,89641.0,89633.0,0.11388963]
[1763585762179,0.3608,89641.0,89633.0,0.00219803]
[1763585762375,0.3608,89641.0,89637.0,0.111686]
[1763585762582,0.40977,89641.0,89640.0,0.00219803]
[1763585763578,0.3608,89641.0,89640.0,0.05315803]
[1763585763879,0.40977,89641.0,89640.0,0.05315803]
[1763585764272,0.0223,89641.0,89640.0,0.05315803]
[1763585764476,0.04913731,89646.0,89645.0,0.02435]
[1763585764674,0.04913731,89646.0,89645.0,0.00219803]
[1763585765072,0.04913731,89646.0,89635.0,0.1116888]
[1763585765273,0.0223,89638.0,89637.0,0.1360373]
[1763585765567,0.04897,89638.0,89637.0,0.13823533]
[1763585765767,0.04897,89645.0,89644.0,0.1116774]
[1763585766083,0.04897,89645.0,89644.0,0.00219803]
[1763585766378,0.3608,89658.0,89657.0,0.1116623]
[1763585766579,0.0223,89659.0,89658.0,0.1626211]
[1763585766884,0.04897,89659.0,89658.0,0.05315803]
[1763585767378,0.04897,89675.0,89674.0,0.135991]
[1763585767580,0.04897,89675.0,89674.0,0.00219803]
[1763585770281,0.04897,89664.0,89663.0,0.3608]
[1763585770486,0.06285,89664.0,89663.0,0.00219803]
[1763585771881,0.3608,89665.0,89664.0,0.05096]
[1763585772083,0.3608,89689.0,89682.0,0.1625912]
[1763585772284,0.01388,89705.0,89682.0,0.1625912]
[1763585772285,0.01388,89694.0,89682.0,0.16478923]
[1763585772585,0.01388,89694.0,89682.0,0.05315803]
[1763585772787,0.0111381,89702.0,89682.0,0.05315803]
[1763585772994,0.04913731,89683.0,89682.0,0.05315803]
[1763585773291,0.00016731,89683.0,89682.0,0.05315803]
[1763585774189,0.04897,89702.0,89696.0,0.1116131]
[1763585774383,0.04897,89702.0,89701.0,0.00219803]
[1763585774690,0.04897,89706.0,89701.0,0.00219803]
[1763585774882,0.10852,89724.0,89706.0,0.1116007]
[1763585775087,0.10852,89724.0,89708.0,0.1115982]
[1763585775287,0.11941239,89724.0,89715.0,0.1115897]
[1763585775479,0.04897,89716.0,89708.0,0.1115987]
[1763585775684,0.04897,89716.0,89715.0,0.02654803]
[1763585775894,0.19986868,89724.0,89715.0,0.05315803]
[1763585776190,0.00165683,89720.0,89719.0,0.05096]
[1763585776391,0.02395683,89720.0,89719.0,0.05315803]
[1763585776786,0.00165683,89720.0,89719.0,0.05315803]
[1763585776990,0.05062683,89720.0,89719.0,0.00219803]
[1763585777292,0.04897,89708.0,89707.0,0.00016721]
[1763585777494,0.04897,89708.0,89707.0,0.00236524]
[1763585777691,0.04897,89708.0,89683.0,0.1116293]
[1763585777692,0.04897,89692.0,89691.0,0.51]
[1763585777887,0.04897,89687.0,89686.0,0.00219803]
[1763585778084,0.05062683,89687.0,89686.0,0.00219803]
[1763585778595,0.05062683,89687.0,89660.0,0.21033257]
[1763585778797,0.0001669,89682.0,89667.0,0.1116495]
[1763585778994,0.0001669,89682.0,89668.0,0.00219803]
[1763585779194,0.04897,89669.0,89668.0,0.00219803]
[1763585780192,0.40977,89669.0,89668.0,0.00219803]
[1763585780495,0.41142683,89669.0,89668.0,0.00219803]
[1763585781398,0.36245683,89669.0,89668.0,0.05315803]
[1763585781597,0.41142683,89669.0,89668.0,0.00219803]
[1763585782301,0.1116486,89668.0,89665.0,0.00016721]
[1763585782490,0.04897,89666.0,89665.0,0.00016721]
[1763585783388,0.05062683,89666.0,89665.0,0.00016721]
[1763585783789,0.05062683,89666.0,89665.0,0.00236524]
[1763585783988,0.05062683,89666.0,89665.0,0.02671524]
[1763585784289,0.05062683,89666.0,89665.0,0.00236524]
[1763585785088,0.05062683,89666.0,89665.0,0.00016721]
[1763585786595,0.02333,89647.0,89642.0,0.1116809]
[1763585786901,0.04663,89647.0,89646.0,0.00247691]
[1763585787404,0.04828683,89647.0,89646.0,0.00247691]
[1763585788504,0.04828683,89647.0,89646.0,0.00347691]
[1763585792206,0.1563148,89639.0,89638.0,0.00016731]
[1763585792505,0.02171,89621.0,89620.0,0.00013559]
[1763585792704,0.04463,89621.0,89620.0,0.00013559]
[1763585793491,0.04628683,89621.0,89620.0,0.00013559]
[1763585794199,0.04628683,89621.0,89620.0,0.00113559]
[1763585794708,0.02336683,89621.0,89620.0,0.04818362]
[1763585794906,0.04628683,89621.0,89620.0,0.02505362]
[1763585795102,0.04628683,89621.0,89620.0,0.04818362]
[1763585795407,0.1563472,89613.0,89612.0,0.00016731]
[1763585795705,0.15800403,89613.0,89612.0,0.00016731]
[1763585796103,0.04628683,89613.0,89612.0,0.00016731]
[1763585796300,0.00165683,89613.0,89612.0,0.04721534]
[1763585796505,0.0017619,89613.0,89612.0,0.04821534]
[1763585796895,0.0017619,89613.0,89612.0,0.04921534]
[1763585798801,0.0234719,89613.0,89612.0,0.04921534]
[1763585799004,0.0017619,89613.0,89612.0,0.04921534]
[1763585799404,0.0017619,89613.0,89612.0,0.04821534]
[1763585799609,0.0017619,89613.0,89612.0,0.04921534]
[1763585800307,0.0017619,89613.0,89612.0,0.04821534]
[1763585800509,0.0017619,89613.0,89612.0,0.04921534]
[1763585802308,0.0234719,89613.0,89612.0,0.04921534]
[1763585802713,0.0017619,89613.0,89612.0,0.04921534]
[1763585803009,0.0463919,89613.0,89612.0,0.04921534]
[1763585804108,0.0017619,89613.0,89612.0,0.04921534]
[1763585805107,0.0234719,89613.0,89612.0,0.04921534]
[1763585805713,0.0017619,89613.0,89612.0,0.04921534]
[1763585806211,0.0463919,89613.0,89612.0,0.04921534]
[1763585806716,0.0234719,89613.0,89612.0,0.04921534]
[1763585807110,0.0017619,89613.0,89612.0,0.04921534]
[1763585808319,0.0234719,89613.0,89612.0,0.04921534]
[1763585808710,0.0017619,89613.0,89612.0,0.04921534]
[1763585809509,0.0234719,89613.0,89612.0,0.04921534]
[1763585809715,0.0463919,89613.0,89612.0,0.04921534]
[1763585810417,0.0463919,89613.0,89612.0,0.00436534]
[1763585810418,0.4071919,89613.0,89612.0,0.00436534]
[1763585810621,0.1563546,89607.0,89580.0,0.3608]
[1763585810817,0.04463,89599.0,89580.0,0.3608]
[1763585811024,0.40543,89594.0,89593.0,0.1117421]
[1763585811213,0.40543,89594.0,89593.0,0.15879013]
[1763585811517,0.38251,89594.0,89593.0,0.15879013]
[1763585811720,0.38416683,89594.0,89593.0,0.15879013]
[1763585811922,0.00165683,89594.0,89593.0,0.15879013]
[1763585812523,0.00165683,89594.0,89593.0,0.15979013]
[1763585814122,0.00165683,89594.0,89593.0,0.16079013]
[1763585814321,0.00165683,89594.0,89593.0,0.15979013]
[1763585814624,0.00016741,89602.0,89601.0,0.1565821]
[1763585814822,0.00016741,89602.0,89601.0,0.51958013]
[1763585816027,0.00016741,89602.0,89601.0,0.52058013]
[1763585816224,0.02187741,89602.0,89601.0,0.16078013]
[1763585816426,0.04479741,89602.0,89601.0,0.16078013]
[1763585816622,0.04479741,89602.0,89601.0,0.11593013]
[1763585816924,0.04479741,89602.0,89601.0,0.00419803]
[1763585817316,0.04479741,89602.0,89601.0,0.1127321]
[1763585817517,0.04479741,89602.0,89601.0,0.11593013]
[1763585818022,0.04479741,89602.0,89601.0,0.00419803]
[1763585818217,0.04479741,89602.0,89601.0,0.001]
[1763585818613,0.04463,89596.0,89595.0,0.111739]
[1763585818923,0.04463,89596.0,89595.0,0.13565703]
[1763585819125,0.04463,89596.0,89595.0,0.15878703]
[1763585819333,0.02187741,89602.0,89601.0,0.1565821]
[1763585819532,0.04479741,89602.0,89601.0,0.15878013]
[1763585820029,0.00016741,89602.0,89601.0,0.15878013]
[1763585821328,0.00016741,89602.0,89601.0,0.15978013]
[1763585821534,0.00016741,89602.0,89601.0,0.16078013]
[1763585822031,0.3608,89623.0,89622.0,0.1583659]
[1763585822228,0.3608,89623.0,89622.0,0.16056393]
[1763585822527,0.40517,89623.0,89622.0,0.16056393]
[1763585822927,0.3608,89623.0,89622.0,0.16056393]
[1763585824031,0.02283741,89631.0,89630.0,0.136146]
[1763585824221,0.02283741,89631.0,89630.0,0.16055403]
[1763585824420,0.04453741,89631.0,89630.0,0.16055403]
[1763585824629,0.15623211,89631.0,89630.0,0.00219803]
[1763585824828,0.15623211,89631.0,89630.0,0.11389403]
[1763585825033,0.04453741,89631.0,89630.0,0.11389403]
[1763585825728,0.15623211,89631.0,89630.0,0.00219803]
[1763585825931,0.04437,89624.0,89623.0,0.1117038]
[1763585826127,0.04437,89615.0,89614.0,0.11188331]
[1763585826333,0.40517,89615.0,89614.0,0.00016741]
[1763585826632,0.04437,89598.0,89597.0,0.1117371]
[1763585826829,0.04437,89598.0,89597.0,0.16059513]
[1763585827223,0.02267,89598.0,89597.0,0.16059513]
[1763585827637,0.04437,89598.0,89597.0,0.16059513]
[1763585827838,0.04437,89598.0,89597.0,0.16159513]
[1763585828336,0.4188,89604.0,89603.0,0.1117296]
[1763585828534,0.4188,89604.0,89603.0,0.00219803]
[1763585829036,0.1561059,89598.0,89597.0,0.002]
[1763585829236,0.5169059,89598.0,89597.0,0.002]
[1763585830034,0.40517,89598.0,89597.0,0.04985803]
[1763585830240,0.36096741,89606.0,89605.0,0.1583871]
[1763585830440,0.36096741,89606.0,89605.0,0.16058513]
[1763585830640,0.00016741,89606.0,89605.0,0.16058513]
[1763585830846,0.3608,89615.0,89614.0,0.1583759]
[1763585831045,0.3608,89615.0,89614.0,0.16057393]
[1763585831241,0.51353,89633.0,89632.0,0.1116935]
[1763585831442,0.87433,89633.0,89632.0,0.11389153]
[1763585831641,0.96238583,89633.0,89632.0,0.11389153]
[1763585831844,0.96238583,89633.0,89632.0,0.00219803]
[1763585832146,0.87433,89633.0,89632.0,0.00219803]
[1763585832648,0.87533,89633.0,89632.0,0.00219803]
[1763585834134,0.87433,89633.0,89632.0,0.04885803]
[1763585834339,0.7216,89633.0,89632.0,0.04885803]
[1763585835253,0.02283741,89641.0,89640.0,0.1583435]
[1763585835451,0.00016741,89641.0,89640.0,0.16054153]
[1763585836544,0.00027888,89646.0,89645.0,0.1583373]
[1763585836739,0.00027888,89646.0,89645.0,0.16053533]
[1763585837246,0.10832,89655.0,89654.0,0.1583261]
[1763585837552,0.10832,89655.0,89654.0,0.16052413]
[1763585838055,0.00016731,89663.0,89655.0,0.04666]
[1763585838242,0.00016731,89663.0,89655.0,0.04885803]
[1763585838243,0.11182231,89663.0,89655.0,0.04885803]
[1763585838552,0.00016731,89663.0,89655.0,0.04885803]
[1763585839053,0.40517,89656.0,89655.0,0.04885803]
[1763585839248,0.40517,89656.0,89655.0,0.00219803]
[1763585839449,0.1253013,89650.0,89647.0,0.1116748]
[1763585839652,0.40517,89648.0,89647.0,0.00219803]
[1763585840350,0.40517,89648.0,89647.0,0.04885803]
[1763585840853,0.40617,89648.0,89647.0,0.04885803]
[1763585841052,0.40717,89648.0,89647.0,0.04885803]
[1763585841244,0.40717,89648.0,89647.0,0.00219803]
[1763585841449,0.04437,89647.0,89646.0,0.00016731]
[1763585842056,0.04437,89628.0,89621.0,0.3608]
[1763585842252,0.04437,89628.0,89627.0,0.47469773]
[1763585842548,0.04437,89636.0,89627.0,0.36299803]
[1763585842853,0.058,89628.0,89627.0,0.00219803]
[1763585843241,0.04437,89628.0,89627.0,0.04885803]